[Event "Titled Tuesday Blitz January 17 Late 2023"]
[White "Bikuzhin, Maksim"]
[Black "Sowa, Ryan"]
[WhiteFideId "24128015"]
[BlackFideId "30901693"]
[WhiteElo "2279"]
[BlackElo "2073"]
[Result "1/2-1/2"]
[Round "03"]
[TimeControl "180+2"]
[Date "2023.01.17"]
[WhiteClock "0:00:41"]
[BlackClock "0:00:33"]

1. e4 {[%clk 0:03:00]}  c6 {[%clk 0:02:59]} 2. Nc3 {[%clk 0:02:59]}  d5 {[%clk 0:02:59]} 3. Qe2 {[%clk 0:02:57]}  d4 {[%clk 0:02:56]} 4. Nd1 {[%clk 0:02:57]}  e5 {[%clk 0:02:57]} 5. d3 {[%clk 0:02:55]}  Bd6 {[%clk 0:02:53]} 6. g3 {[%clk 0:02:55]}  c5 {[%clk 0:02:52]} 7. Bg2 {[%clk 0:02:55]}  Nc6 {[%clk 0:02:52]} 8. f4 {[%clk 0:02:53]}  f6 {[%clk 0:02:52]} 9. Nf3 {[%clk 0:02:52]}  Be6 {[%clk 0:02:50]} 10. Nf2 {[%clk 0:02:50]}  Qd7 {[%clk 0:02:50]} 11. O-O {[%clk 0:02:45]}  Nge7 {[%clk 0:02:49]} 12. Bd2 {[%clk 0:02:39]}  O-O-O {[%clk 0:02:44]} 13. c4 {[%clk 0:02:36]}  h6 {[%clk 0:02:34]} 14. a3 {[%clk 0:02:33]}  g5 {[%clk 0:02:33]} 15. f5 {[%clk 0:02:33]}  Bf7 {[%clk 0:02:33]} 16. Rab1 {[%clk 0:02:29]}  Kb8 {[%clk 0:02:24]} 17. b4 {[%clk 0:02:28]}  b6 {[%clk 0:02:25]} 18. Qe1 {[%clk 0:02:13]}  Rc8 {[%clk 0:02:21]} 19. b5 {[%clk 0:02:05]}  Nd8 {[%clk 0:02:21]} 20. a4 {[%clk 0:02:06]}  Nb7 {[%clk 0:02:19]} 21. a5 {[%clk 0:02:00]}  Bc7 {[%clk 0:02:19]} 22. axb6 {[%clk 0:01:57]}  axb6 {[%clk 0:02:18]} 23. Ra1 {[%clk 0:01:56]}  Na5 {[%clk 0:02:17]} 24. Bxa5 {[%clk 0:01:52]}  bxa5 {[%clk 0:02:15]} 25. b6 {[%clk 0:01:48]}  Bxb6 {[%clk 0:02:14]} 26. Rxa5 {[%clk 0:01:41]}  Nc6 {[%clk 0:01:56]} 27. Rb5 {[%clk 0:01:25]}  Kc7 {[%clk 0:01:56]} 28. Qb1 {[%clk 0:01:18]}  Rb8 {[%clk 0:01:46]} 29. Qb2 {[%clk 0:01:15]}  h5 {[%clk 0:01:42]} 30. Rb1 {[%clk 0:01:14]}  Nb4 {[%clk 0:01:42]} 31. Ne1 {[%clk 0:01:12]}  Qd6 {[%clk 0:01:25]} 32. Nc2 {[%clk 0:01:09]}  Nxc2 {[%clk 0:01:24]} 33. Qxc2 {[%clk 0:01:10]}  Be8 {[%clk 0:01:24]} 34. R5b2 {[%clk 0:01:04]}  Bd7 {[%clk 0:01:21]} 35. Bf3 {[%clk 0:01:01]}  g4 {[%clk 0:00:56]} 36. Bd1 {[%clk 0:01:00]}  Ba5 {[%clk 0:00:57]} 37. Rxb8 {[%clk 0:00:51]}  Rxb8 {[%clk 0:00:58]} 38. Rxb8 {[%clk 0:00:51]}  Kxb8 {[%clk 0:00:58]} 39. h3 {[%clk 0:00:50]}  gxh3 {[%clk 0:00:48]} 40. Nxh3 {[%clk 0:00:51]}  Be8 {[%clk 0:00:45]} 41. Qc1 {[%clk 0:00:47]}  Qf8 {[%clk 0:00:43]} 42. Kg2 {[%clk 0:00:43]}  Bb4 {[%clk 0:00:43]} 43. Ng1 {[%clk 0:00:42]}  Qg7 {[%clk 0:00:43]} 44. Nf3 {[%clk 0:00:41]}  Qa7 {[%clk 0:00:40]} 45. Nh4 {[%clk 0:00:40]}  Qa2+ {[%clk 0:00:39]} 46. Qc2 {[%clk 0:00:40]}  Qxc2+ {[%clk 0:00:38]} 47. Bxc2 {[%clk 0:00:41]}  Kc7 {[%clk 0:00:37]} 48. Bd1 {[%clk 0:00:41]}  Kd8 {[%clk 0:00:36]} 49. Ng6 {[%clk 0:00:41]}  Bxg6 {[%clk 0:00:35]} 50. fxg6 {[%clk 0:00:42]}  Ke7 {[%clk 0:00:35]} 51. Bxh5 {[%clk 0:00:42]}  Kf8 {[%clk 0:00:36]} 52. Kf3 {[%clk 0:00:41]}  Kg7 {[%clk 0:00:35]} 53. Kg4 {[%clk 0:00:42]}  Ba3 {[%clk 0:00:35]} 54. Kf5 {[%clk 0:00:41]}  Bc1 {[%clk 0:00:36]} 55. Ke6 {[%clk 0:00:41]}  Bd2 {[%clk 0:00:36]} 56. Kd6 {[%clk 0:00:40]}  Bb4 {[%clk 0:00:36]} 57. Kc6 {[%clk 0:00:39]}  Ba3 {[%clk 0:00:33]} 58. Kb5 {[%clk 0:00:39]}  Bb4 {[%clk 0:00:33]} 59. Ka4 {[%clk 0:00:39]}  Bc3 {[%clk 0:00:33]} 60. Kb5 {[%clk 0:00:40]}  Bb4 {[%clk 0:00:33]} 61. Ka4 {[%clk 0:00:40]}  Bc3 {[%clk 0:00:33]} 62. Kb5 {[%clk 0:00:41]}  Bb4 {[%clk 0:00:33]} 1/2-1/2


[Site "https://www.chess.com"]

[Event "Titled Tuesday Blitz January 17 Late 2023"]
[White "Moroni, Luca Jr"]
[Black "Vovk, Orest"]
[WhiteFideId "865834"]
[BlackFideId "14113490"]
[WhiteElo "2535"]
[BlackElo "2315"]
[Result "1-0"]
[Round "03"]
[TimeControl "180+2"]
[Date "2023.01.17"]
[WhiteClock "0:00:56"]
[BlackClock "0:00:02"]

1. d4 {[%clk 0:03:00]}  e5 {[%clk 0:02:50]} 2. dxe5 {[%clk 0:03:00]}  Nc6 {[%clk 0:02:49]} 3. Nf3 {[%clk 0:02:59]}  Qe7 {[%clk 0:02:47]} 4. g3 {[%clk 0:02:58]}  Nxe5 {[%clk 0:02:46]} 5. Nxe5 {[%clk 0:02:58]}  Qxe5 {[%clk 0:02:46]} 6. Bg2 {[%clk 0:02:59]}  Qd6 {[%clk 0:02:46]} 7. Nd2 {[%clk 0:02:56]}  Nf6 {[%clk 0:02:41]} 8. O-O {[%clk 0:02:56]}  Be7 {[%clk 0:02:38]} 9. b3 {[%clk 0:02:57]}  Qe5 {[%clk 0:02:36]} 10. Rb1 {[%clk 0:02:55]}  d5 {[%clk 0:02:34]} 11. Bb2 {[%clk 0:02:54]}  Qh5 {[%clk 0:02:34]} 12. e4 {[%clk 0:02:51]}  Qxd1 {[%clk 0:02:25]} 13. Rbxd1 {[%clk 0:02:52]}  dxe4 {[%clk 0:02:25]} 14. Nxe4 {[%clk 0:02:47]}  Nxe4 {[%clk 0:02:24]} 15. Bxe4 {[%clk 0:02:48]}  O-O {[%clk 0:02:23]} 16. Rfe1 {[%clk 0:02:48]}  Bd6 {[%clk 0:02:17]} 17. Kg2 {[%clk 0:02:43]}  a5 {[%clk 0:02:08]} 18. a4 {[%clk 0:02:40]}  Rb8 {[%clk 0:02:08]} 19. Bc3 {[%clk 0:02:14]}  b6 {[%clk 0:01:58]} 20. Bc6 {[%clk 0:02:14]}  Bb7 {[%clk 0:01:57]} 21. Bxb7 {[%clk 0:02:13]}  Rxb7 {[%clk 0:01:57]} 22. Be5 {[%clk 0:02:10]}  Bxe5 {[%clk 0:01:53]} 23. Rxe5 {[%clk 0:02:11]}  c5 {[%clk 0:01:47]} 24. c4 {[%clk 0:02:02]}  g6 {[%clk 0:01:45]} 25. Rd6 {[%clk 0:02:01]}  Kg7 {[%clk 0:01:43]} 26. g4 {[%clk 0:01:59]}  h6 {[%clk 0:01:43]} 27. h4 {[%clk 0:01:58]}  Rc8 {[%clk 0:01:37]} 28. Kg3 {[%clk 0:01:56]}  Rcc7 {[%clk 0:01:30]} 29. g5 {[%clk 0:01:47]}  hxg5 {[%clk 0:01:29]} 30. hxg5 {[%clk 0:01:48]}  Rd7 {[%clk 0:01:21]} 31. Red5 {[%clk 0:01:43]}  Re7 {[%clk 0:01:02]} 32. Rf6 {[%clk 0:01:42]}  Re1 {[%clk 0:00:50]} 33. Rdd6 {[%clk 0:01:32]}  Rb1 {[%clk 0:00:47]} 34. Rd3 {[%clk 0:01:29]}  Rb2 {[%clk 0:00:32]} 35. Rc6 {[%clk 0:01:26]}  Re2 {[%clk 0:00:21]} 36. f3 {[%clk 0:01:23]}  Re5 {[%clk 0:00:08]} 37. Kg4 {[%clk 0:01:20]}  Re1 {[%clk 0:00:06]} 38. Rd8 {[%clk 0:01:20]}  Ree7 {[%clk 0:00:01]} 39. Rcc8 {[%clk 0:01:18]}  f5+ {[%clk 0:00:02]} 40. Kf4 {[%clk 0:01:13]}  Kf7 {[%clk 0:00:02]} 41. Rf8+ {[%clk 0:01:11]}  Ke6 {[%clk 0:00:03]} 42. Rf6+ {[%clk 0:01:09]}  Kd7 {[%clk 0:00:03]} 43. Rcc6 {[%clk 0:01:07]}  Rh7 {[%clk 0:00:02]} 44. Rfd6+ {[%clk 0:01:03]}  Ke7 {[%clk 0:00:01]} 45. Rxg6 {[%clk 0:01:04]}  Kd7 {[%clk 0:00:01]} 46. Rxb6 {[%clk 0:01:01]}  Rxb6 {[%clk 0:00:01]} 47. Rxb6 {[%clk 0:01:02]}  Rh4+ {[%clk 0:00:01]} 48. Kxf5 {[%clk 0:01:02]}  Rh6 {[%clk 0:00:02]} 49. Rb7+ {[%clk 0:00:56]} 1-0


[Site "https://www.chess.com"]

[Event "Titled Tuesday Blitz January 17 Late 2023"]
[White "Strahov, Andrej"]
[Black "Yanchenko, Roman"]
[WhiteFideId "4165489"]
[BlackFideId "4137329"]
[WhiteElo "2398"]
[BlackElo "2466"]
[Result "1/2-1/2"]
[Round "03"]
[TimeControl "180+2"]
[Date "2023.01.17"]
[WhiteClock "0:00:23"]
[BlackClock "0:00:48"]

1. e4 {[%clk 0:03:00]}  e6 {[%clk 0:02:58]} 2. d4 {[%clk 0:03:00]}  d5 {[%clk 0:02:59]} 3. Nc3 {[%clk 0:03:00]}  Bb4 {[%clk 0:02:59]} 4. Ne2 {[%clk 0:03:01]}  Nf6 {[%clk 0:02:59]} 5. Bg5 {[%clk 0:02:47]}  h6 {[%clk 0:02:58]} 6. Bxf6 {[%clk 0:02:46]}  Qxf6 {[%clk 0:02:59]} 7. a3 {[%clk 0:02:45]}  Bxc3+ {[%clk 0:02:59]} 8. Nxc3 {[%clk 0:02:46]}  c6 {[%clk 0:02:59]} 9. e5 {[%clk 0:02:43]}  Qe7 {[%clk 0:02:59]} 10. Bd3 {[%clk 0:02:43]}  b6 {[%clk 0:02:57]} 11. Ne2 {[%clk 0:02:42]}  Ba6 {[%clk 0:02:57]} 12. O-O {[%clk 0:02:41]}  O-O {[%clk 0:02:55]} 13. c3 {[%clk 0:02:37]}  Bxd3 {[%clk 0:02:55]} 14. Qxd3 {[%clk 0:02:38]}  c5 {[%clk 0:02:55]} 15. f4 {[%clk 0:02:38]}  f5 {[%clk 0:02:51]} 16. exf6 {[%clk 0:02:34]}  Rxf6 {[%clk 0:02:51]} 17. Ng3 {[%clk 0:02:33]}  Nc6 {[%clk 0:02:51]} 18. Rae1 {[%clk 0:02:32]}  Raf8 {[%clk 0:02:49]} 19. f5 {[%clk 0:02:28]}  cxd4 {[%clk 0:02:36]} 20. cxd4 {[%clk 0:02:26]}  Qd6 {[%clk 0:02:21]} 21. fxe6 {[%clk 0:02:22]}  Rxf1+ {[%clk 0:02:21]} 22. Nxf1 {[%clk 0:02:21]}  Qf4 {[%clk 0:02:21]} 23. Qe3 {[%clk 0:02:05]}  Qxd4 {[%clk 0:02:05]} 24. Qxd4 {[%clk 0:01:29]}  Nxd4 {[%clk 0:02:06]} 25. Ne3 {[%clk 0:01:29]}  Nxe6 {[%clk 0:02:02]} 26. Nxd5 {[%clk 0:01:29]}  Nd4 {[%clk 0:02:00]} 27. Re4 {[%clk 0:01:21]}  Nb3 {[%clk 0:01:53]} 28. Re7 {[%clk 0:01:15]}  Rf7 {[%clk 0:01:52]} 29. Re3 {[%clk 0:01:15]}  Nc5 {[%clk 0:01:51]} 30. b4 {[%clk 0:01:12]}  Nd7 {[%clk 0:01:48]} 31. Ne7+ {[%clk 0:01:12]}  Kh7 {[%clk 0:01:48]} 32. Nc6 {[%clk 0:01:11]}  Nf6 {[%clk 0:01:45]} 33. h3 {[%clk 0:01:03]}  Nd5 {[%clk 0:01:44]} 34. Rd3 {[%clk 0:01:03]}  Nf4 {[%clk 0:01:43]} 35. Rd8 {[%clk 0:01:03]}  Ne2+ {[%clk 0:01:37]} 36. Kh2 {[%clk 0:01:03]}  Rc7 {[%clk 0:01:37]} 37. Rd6 {[%clk 0:01:01]}  Nc3 {[%clk 0:01:36]} 38. Nd4 {[%clk 0:00:51]}  Re7 {[%clk 0:01:24]} 39. Nf5 {[%clk 0:00:47]}  Rf7 {[%clk 0:01:20]} 40. g4 {[%clk 0:00:47]}  Nb5 {[%clk 0:01:19]} 41. Rd3 {[%clk 0:00:45]}  g6 {[%clk 0:01:19]} 42. Ne3 {[%clk 0:00:36]}  Rf2+ {[%clk 0:01:10]} 43. Kg3 {[%clk 0:00:36]}  Ra2 {[%clk 0:01:10]} 44. Nc4 {[%clk 0:00:33]}  g5 {[%clk 0:01:05]} 45. Kf3 {[%clk 0:00:30]}  Kg7 {[%clk 0:01:00]} 46. Ne3 {[%clk 0:00:30]}  Rxa3 {[%clk 0:00:59]} 47. Rxa3 {[%clk 0:00:30]}  Nxa3 {[%clk 0:00:59]} 48. Ke4 {[%clk 0:00:30]}  a5 {[%clk 0:00:54]} 49. bxa5 {[%clk 0:00:29]}  bxa5 {[%clk 0:00:55]} 50. Kd5 {[%clk 0:00:29]}  Nb5 {[%clk 0:00:50]} 51. Kc5 {[%clk 0:00:28]}  Nc7 {[%clk 0:00:50]} 52. Kb6 {[%clk 0:00:28]}  a4 {[%clk 0:00:46]} 53. Kxc7 {[%clk 0:00:26]}  a3 {[%clk 0:00:45]} 54. Kd6 {[%clk 0:00:27]}  a2 {[%clk 0:00:45]} 55. Nc2 {[%clk 0:00:27]}  Kf6 {[%clk 0:00:43]} 56. Kd5 {[%clk 0:00:27]}  Kf7 {[%clk 0:00:43]} 57. Ke5 {[%clk 0:00:27]}  Ke7 {[%clk 0:00:43]} 58. Kf5 {[%clk 0:00:27]}  Kf7 {[%clk 0:00:43]} 59. Na1 {[%clk 0:00:25]}  Kg7 {[%clk 0:00:41]} 60. Ke6 {[%clk 0:00:25]}  Kg6 {[%clk 0:00:41]} 61. Nb3 {[%clk 0:00:25]}  Kg7 {[%clk 0:00:42]} 62. Ke7 {[%clk 0:00:22]}  Kg6 {[%clk 0:00:42]} 63. Ke6 {[%clk 0:00:21]}  Kg7 {[%clk 0:00:42]} 64. Kd5 {[%clk 0:00:21]}  Kf6 {[%clk 0:00:42]} 65. Kc4 {[%clk 0:00:22]}  Ke5 {[%clk 0:00:43]} 66. Kc3 {[%clk 0:00:22]}  Kf4 {[%clk 0:00:43]} 67. Kb2 {[%clk 0:00:22]}  Kg3 {[%clk 0:00:44]} 68. Kxa2 {[%clk 0:00:23]}  Kxh3 {[%clk 0:00:44]} 69. Kb2 {[%clk 0:00:23]}  Kxg4 {[%clk 0:00:45]} 70. Kc2 {[%clk 0:00:24]}  Kf3 {[%clk 0:00:45]} 71. Kd2 {[%clk 0:00:23]}  Kf2 {[%clk 0:00:46]} 72. Nc1 {[%clk 0:00:22]}  g4 {[%clk 0:00:44]} 73. Nd3+ {[%clk 0:00:22]}  Kf1 {[%clk 0:00:44]} 74. Ke3 {[%clk 0:00:22]}  g3 {[%clk 0:00:44]} 75. Nf4 {[%clk 0:00:22]}  g2 {[%clk 0:00:44]} 76. Nxg2 {[%clk 0:00:20]}  Kxg2 {[%clk 0:00:44]} 77. Kf4 {[%clk 0:00:20]}  Kh3 {[%clk 0:00:44]} 78. Kf3 {[%clk 0:00:21]}  h5 {[%clk 0:00:44]} 79. Kf2 {[%clk 0:00:21]}  Kh2 {[%clk 0:00:45]} 80. Kf1 {[%clk 0:00:21]}  h4 {[%clk 0:00:45]} 81. Kf2 {[%clk 0:00:22]}  h3 {[%clk 0:00:46]} 82. Kf1 {[%clk 0:00:22]}  Kh1 {[%clk 0:00:47]} 83. Kf2 {[%clk 0:00:23]}  h2 {[%clk 0:00:48]} 84. Kf1 {[%clk 0:00:23]} 1/2-1/2


[Site "https://www.chess.com"]

[Event "Titled Tuesday Blitz January 17 Late 2023"]
[White "Urazayev, Arystanbek"]
[Black "Kuznecovs, Nikita"]
[WhiteFideId "13709810"]
[BlackFideId "11604557"]
[WhiteElo "2460"]
[BlackElo "2287"]
[Result "1-0"]
[Round "03"]
[TimeControl "180+2"]
[Date "2023.01.17"]
[WhiteClock "0:00:08"]
[BlackClock "0:00:07"]

1. e4 {[%clk 0:02:47]}  e6 {[%clk 0:02:57]} 2. d4 {[%clk 0:02:47]}  d5 {[%clk 0:02:58]} 3. Nd2 {[%clk 0:02:48]}  Be7 {[%clk 0:02:58]} 4. Ngf3 {[%clk 0:02:48]}  Nf6 {[%clk 0:02:58]} 5. e5 {[%clk 0:02:48]}  Nfd7 {[%clk 0:02:59]} 6. Bd3 {[%clk 0:02:49]}  c5 {[%clk 0:02:59]} 7. c3 {[%clk 0:02:50]}  Nc6 {[%clk 0:03:00]} 8. O-O {[%clk 0:02:50]}  a5 {[%clk 0:02:59]} 9. a4 {[%clk 0:02:49]}  cxd4 {[%clk 0:03:00]} 10. cxd4 {[%clk 0:02:50]}  Nb4 {[%clk 0:03:00]} 11. Bb1 {[%clk 0:02:50]}  b6 {[%clk 0:02:59]} 12. Re1 {[%clk 0:02:50]}  Ba6 {[%clk 0:02:59]} 13. Nf1 {[%clk 0:02:49]}  Rc8 {[%clk 0:02:52]} 14. Ra3 {[%clk 0:02:48]}  Nb8 {[%clk 0:02:52]} 15. Ng3 {[%clk 0:02:41]}  h5 {[%clk 0:02:47]} 16. Ne2 {[%clk 0:02:41]}  Kd7 {[%clk 0:02:40]} 17. Nc3 {[%clk 0:02:40]}  Kc7 {[%clk 0:02:40]} 18. Nb5+ {[%clk 0:02:31]}  Kb7 {[%clk 0:02:40]} 19. Rc3 {[%clk 0:02:29]}  N8c6 {[%clk 0:02:41]} 20. h4 {[%clk 0:02:17]}  Bxb5 {[%clk 0:02:36]} 21. axb5 {[%clk 0:02:17]}  Na7 {[%clk 0:02:36]} 22. Qe2 {[%clk 0:02:17]}  Qd7 {[%clk 0:02:32]} 23. Bg5 {[%clk 0:02:16]}  Bf8 {[%clk 0:02:18]} 24. Rec1 {[%clk 0:02:15]}  Be7 {[%clk 0:01:40]} 25. Bxe7 {[%clk 0:01:59]}  Qxe7 {[%clk 0:01:38]} 26. Ng5 {[%clk 0:02:00]}  g6 {[%clk 0:01:05]} 27. Rxc8 {[%clk 0:01:51]}  Nxc8 {[%clk 0:01:00]} 28. Qf3 {[%clk 0:01:50]}  Rf8 {[%clk 0:00:59]} 29. Bd3 {[%clk 0:01:30]}  f6 {[%clk 0:00:49]} 30. exf6 {[%clk 0:01:21]}  Rxf6 {[%clk 0:00:40]} 31. Qe3 {[%clk 0:01:20]}  Nd6 {[%clk 0:00:40]} 32. Bf1 {[%clk 0:01:13]}  Nf5 {[%clk 0:00:35]} 33. Qf4 {[%clk 0:00:54]}  Qd6 {[%clk 0:00:35]} 34. Qe5 {[%clk 0:00:50]}  Qxe5 {[%clk 0:00:11]} 35. dxe5 {[%clk 0:00:49]}  Rf8 {[%clk 0:00:11]} 36. Rc7+ {[%clk 0:00:42]}  Kb8 {[%clk 0:00:06]} 37. Rh7 {[%clk 0:00:42]}  Nxh4 {[%clk 0:00:06]} 38. Nxe6 {[%clk 0:00:42]}  Re8 {[%clk 0:00:06]} 39. Nd4 {[%clk 0:00:34]}  Rxe5 {[%clk 0:00:05]} 40. Nc6+ {[%clk 0:00:34]}  Nxc6 {[%clk 0:00:05]} 41. bxc6 {[%clk 0:00:35]}  Re1 {[%clk 0:00:03]} 42. g3 {[%clk 0:00:35]}  Nf5 {[%clk 0:00:03]} 43. c7+ {[%clk 0:00:33]}  Kc8 {[%clk 0:00:02]} 44. Kg2 {[%clk 0:00:33]}  Nd6 {[%clk 0:00:02]} 45. Ba6+ {[%clk 0:00:33]}  Nb7 {[%clk 0:00:03]} 46. Rh8+ {[%clk 0:00:33]}  Kxc7 {[%clk 0:00:03]} 47. Rh7+ {[%clk 0:00:34]}  Kd6 {[%clk 0:00:04]} 48. Rxb7 {[%clk 0:00:33]}  Kc6 {[%clk 0:00:04]} 49. Rg7 {[%clk 0:00:33]}  Rb1 {[%clk 0:00:05]} 50. Rxg6+ {[%clk 0:00:32]}  Kc5 {[%clk 0:00:05]} 51. Rg5 {[%clk 0:00:21]}  Rxb2 {[%clk 0:00:05]} 52. Rxh5 {[%clk 0:00:21]}  a4 {[%clk 0:00:06]} 53. Rh1 {[%clk 0:00:22]}  a3 {[%clk 0:00:06]} 54. g4 {[%clk 0:00:20]}  a2 {[%clk 0:00:06]} 55. Ra1 {[%clk 0:00:20]}  b5 {[%clk 0:00:07]} 56. g5 {[%clk 0:00:18]}  b4 {[%clk 0:00:07]} 57. g6 {[%clk 0:00:19]}  b3 {[%clk 0:00:04]} 58. g7 {[%clk 0:00:18]}  Rxf2+ {[%clk 0:00:04]} 59. Kxf2 {[%clk 0:00:17]}  b2 {[%clk 0:00:05]} 60. Rxa2 {[%clk 0:00:09]}  b1=Q {[%clk 0:00:06]} 61. g8=Q {[%clk 0:00:08]}  Qxa2+ {[%clk 0:00:06]} 62. Be2 {[%clk 0:00:09]}  Qa6 {[%clk 0:00:07]} 63. Bxa6 {[%clk 0:00:08]} 1-0


[Site "https://www.chess.com"]

[Event "Titled Tuesday Blitz January 17 Late 2023"]
[White "Khandelwal, Ankush"]
[Black "Iniyan, P"]
[WhiteFideId "413470"]
[BlackFideId "25002767"]
[WhiteElo "2205"]
[BlackElo "2525"]
[Result "0-1"]
[Round "03"]
[TimeControl "180+2"]
[Date "2023.01.17"]
[WhiteClock "0:00:08"]
[BlackClock "0:00:38"]

1. e4 {[%clk 0:03:00]}  g6 {[%clk 0:02:47]} 2. d4 {[%clk 0:03:00]}  Bg7 {[%clk 0:02:48]} 3. Nc3 {[%clk 0:02:59]}  d6 {[%clk 0:02:48]} 4. Be3 {[%clk 0:02:56]}  a6 {[%clk 0:02:48]} 5. Qd2 {[%clk 0:02:46]}  b5 {[%clk 0:02:48]} 6. a3 {[%clk 0:02:46]}  Bb7 {[%clk 0:02:49]} 7. Nf3 {[%clk 0:02:44]}  Nd7 {[%clk 0:02:49]} 8. Bd3 {[%clk 0:02:44]}  c5 {[%clk 0:02:48]} 9. h4 {[%clk 0:02:39]}  cxd4 {[%clk 0:02:48]} 10. Bxd4 {[%clk 0:02:37]}  Ngf6 {[%clk 0:02:47]} 11. h5 {[%clk 0:02:30]}  Nxh5 {[%clk 0:02:32]} 12. Bxg7 {[%clk 0:02:09]}  Nxg7 {[%clk 0:02:33]} 13. Qh6 {[%clk 0:02:09]}  Ne6 {[%clk 0:02:31]} 14. Nd5 {[%clk 0:01:55]}  Nf6 {[%clk 0:02:14]} 15. Nxf6+ {[%clk 0:01:44]}  exf6 {[%clk 0:02:15]} 16. O-O-O {[%clk 0:01:44]}  Qb6 {[%clk 0:01:58]} 17. Qh4 {[%clk 0:01:29]}  g5 {[%clk 0:01:56]} 18. Qh6 {[%clk 0:01:22]}  Ke7 {[%clk 0:01:56]} 19. Rhe1 {[%clk 0:00:41]}  Qxf2 {[%clk 0:01:52]} 20. e5 {[%clk 0:00:42]}  dxe5 {[%clk 0:01:39]} 21. Rd2 {[%clk 0:00:41]}  Qg3 {[%clk 0:01:37]} 22. Rf1 {[%clk 0:00:35]}  Nf4 {[%clk 0:01:23]} 23. Nxe5 {[%clk 0:00:26]}  fxe5 {[%clk 0:01:15]} 24. Qb6 {[%clk 0:00:26]}  Bxg2 {[%clk 0:01:05]} 25. Bf5 {[%clk 0:00:15]}  Rhd8 {[%clk 0:00:59]} 26. Qc7+ {[%clk 0:00:15]}  Kf6 {[%clk 0:00:58]} 27. Rxd8 {[%clk 0:00:16]}  Rxd8 {[%clk 0:00:59]} 28. Qxd8+ {[%clk 0:00:16]}  Kxf5 {[%clk 0:00:59]} 29. Rd1 {[%clk 0:00:16]}  Be4 {[%clk 0:00:49]} 30. Qd7+ {[%clk 0:00:15]}  Kg6 {[%clk 0:00:48]} 31. Qe7 {[%clk 0:00:09]}  Ne6 {[%clk 0:00:47]} 32. Rf1 {[%clk 0:00:08]}  Nf4 {[%clk 0:00:38]} 33. Qxe5 {[%clk 0:00:08]}  Ne2+ {[%clk 0:00:37]} 34. Kb1 {[%clk 0:00:08]}  Qxe5 {[%clk 0:00:38]} 0-1


[Site "https://www.chess.com"]

[Event "Titled Tuesday Blitz January 17 Late 2023"]
[White "Fernandez Guillen, Ernesto J."]
[Black "Goncalves, Davi Sulzbacher"]
[WhiteFideId "3512428"]
[BlackFideId "2154510"]
[WhiteElo "2477"]
[BlackElo "2282"]
[Result "1-0"]
[Round "03"]
[TimeControl "180+2"]
[Date "2023.01.17"]
[WhiteClock "0:00:03"]
[BlackClock "0:00:05"]

1. e4 {[%clk 0:03:00]}  g6 {[%clk 0:03:00]} 2. d4 {[%clk 0:02:59]}  Bg7 {[%clk 0:03:00]} 3. Nc3 {[%clk 0:02:58]}  d6 {[%clk 0:03:00]} 4. Be3 {[%clk 0:02:58]}  a6 {[%clk 0:02:58]} 5. f3 {[%clk 0:02:59]}  b5 {[%clk 0:02:57]} 6. Qd2 {[%clk 0:02:59]}  Nd7 {[%clk 0:02:54]} 7. h4 {[%clk 0:02:55]}  h5 {[%clk 0:02:52]} 8. Nh3 {[%clk 0:02:54]}  Nb6 {[%clk 0:02:50]} 9. Bd3 {[%clk 0:02:39]}  Bxh3 {[%clk 0:02:44]} 10. Rxh3 {[%clk 0:02:29]}  d5 {[%clk 0:02:41]} 11. e5 {[%clk 0:02:27]}  Nc4 {[%clk 0:02:39]} 12. Bxc4 {[%clk 0:02:27]}  bxc4 {[%clk 0:02:38]} 13. g4 {[%clk 0:02:25]}  e6 {[%clk 0:02:37]} 14. Qg2 {[%clk 0:02:23]}  Rb8 {[%clk 0:02:31]} 15. O-O-O {[%clk 0:02:22]}  c5 {[%clk 0:02:14]} 16. dxc5 {[%clk 0:02:16]}  Bxe5 {[%clk 0:02:04]} 17. f4 {[%clk 0:02:08]}  Bg7 {[%clk 0:01:42]} 18. f5 {[%clk 0:01:58]}  hxg4 {[%clk 0:01:40]} 19. Qxg4 {[%clk 0:01:35]}  Nh6 {[%clk 0:01:40]} 20. Bxh6 {[%clk 0:01:33]}  Bxh6+ {[%clk 0:01:41]} 21. Kb1 {[%clk 0:01:32]}  gxf5 {[%clk 0:01:41]} 22. Qe2 {[%clk 0:01:11]}  Bg7 {[%clk 0:01:24]} 23. Rg3 {[%clk 0:00:31]}  Kf8 {[%clk 0:00:51]} 24. Rxg7 {[%clk 0:00:29]}  Kxg7 {[%clk 0:00:51]} 25. Qe5+ {[%clk 0:00:26]}  Kh7 {[%clk 0:00:44]} 26. Nxd5 {[%clk 0:00:17]}  exd5 {[%clk 0:00:26]} 27. Rg1 {[%clk 0:00:17]}  Rg8 {[%clk 0:00:20]} 28. Qxf5+ {[%clk 0:00:17]}  Kh6 {[%clk 0:00:11]} 29. Qf4+ {[%clk 0:00:17]}  Kh7 {[%clk 0:00:08]} 30. Qxf7+ {[%clk 0:00:16]}  Kh6 {[%clk 0:00:08]} 31. Qf4+ {[%clk 0:00:17]}  Kh7 {[%clk 0:00:08]} 32. Qf5+ {[%clk 0:00:15]}  Kh6 {[%clk 0:00:08]} 33. Qe6+ {[%clk 0:00:11]}  Kh7 {[%clk 0:00:08]} 34. Qf7+ {[%clk 0:00:11]}  Kh6 {[%clk 0:00:08]} 35. Rf1 {[%clk 0:00:04]}  Qf8 {[%clk 0:00:05]} 36. Rf6+ {[%clk 0:00:03]} 1-0


[Site "https://www.chess.com"]